[Event "CCT Chessable Masters D-I 2024"]
[Site "Online"]
[Date "2024.02.04"]
[Round "3"]
[White "Carlsen, Magnus"]
[Black "Lazavik, Denis"]
[Result "0-1"]
[ECO "A29"]
[WhiteElo "2830"]
[BlackElo "2566"]
[Annotator "TA"]
[PlyCount "110"]
[EventDate "2024.01.12"]
[EventType "k.o."]
[EventCountry "NET"]
[SourceTitle "playchess.com"]
[Source "ChessBase"]
[SourceQuality "1"]
[TimeControl "600+2"]

{[%evp 43,110,-18,-17,-29,-13,-23,-36,-33,-10,-92,-97,-103,-97,-95,-60,-187,-170,-327,-397,-387,-386,-384,-431,-412,-428,-434,-427,-472,-477,-462,-136,-136,-130,-137,-132,-619,-510,-534,-381,-878,-505,-501,-477,-1147,-1044,-993,-737,-912,-705,-656,-581,-653,-629,-752,-719,-1004,-1030,-999,-971,-1042,-932,-1388,-1379,-1562,-1239,-1572,-1618,-2077,-2081]} 1. c4 {[%emt 0:00:03]} Nf6 {[%emt 0:00:04]} 2. Nc3 {[%emt 0:00:01]} e5 {[%emt 0:00:01]} 3. Nf3 {[%emt 0:00:00]} Nc6 {[%emt 0:00:01]} 4. g3 {[%emt 0:00:01]} d5 {[%emt 0:00:02]} 5. cxd5 {[%emt 0:00:00]} Nxd5 {[%emt 0:00:00]} 6. Bg2 {[%emt 0:00:01]} Bc5 {[%emt 0:00:01]} 7. O-O {[%emt 0:00:02]} O-O {[%emt 0:00:01]} 8. d3 {[%emt 0:00:00]} h6 {[%emt 0:00:01]} 9. Nxd5 {[%emt 0:00:01] 9.Nxd5 is better than 9.Bd2. A29: English Opening: Four Knights Variation with 4 g3.} Qxd5 {[%emt 0:00:02]} 10. Bd2 {[%emt 0:00:01]} Rd8 {[%emt 0:00:26]} 11. Qc2 {[%emt 0:00:07]} Qd6 {[%emt 0:00:09]} 12. a3 {[%emt 0:00:02]} a5 {[%emt 0:00:08]} 13. Rac1 {[%emt 0:00:01]} Bb6 {[%emt 0:00:04]} 14. Be3 {[%emt 0:00:01]} Be6 {[%emt 0:00:09]} 15. Bxb6 {[%emt 0:00:30]} cxb6 {[%emt 0:00:02]} 16. Qa4 {[%emt 0:00:03]} Bd5 {[%emt 0:00:40]} 17. e3 $146 {[%emt 0:00:21]} ({Predecessor:} 17. Rfe1 Rac8 18. Rc3 Ne7 19. Rec1 Rxc3 20. Rxc3 Bc6 21. Qb3 b5 22. Nd2 a4 23. Qc2 Bxg2 24. Kxg2 {½-½ Maghsoodloo,P (2742)-Lazavik,D (2566) Wch Blitz Samarkand 2023 (16)}) 17... Rac8 {[%emt 0:00:30]} 18. Rc3 {[%emt 0:00:26]} Ne7 {[%emt 0:00:28]} 19. Rfc1 {[%emt 0:01:49]} Rxc3 {[%emt 0:00:22]} 20. Rxc3 {[%emt 0:00:01]} Bc6 {[%emt 0:00:04]} 21. Qd1 {[%emt 0:00:25]} b5 {[%emt 0:00:13]} 22. Qe1 {[%emt 0:01:40]} b4 {[%emt 0:01:05]} 23. axb4 {[%emt 0:00:02]} Nd5 {[%emt 0:00:02]} 24. Rxc6 {[%emt 0:00:24]} bxc6 {[%emt 0:00:21]} 25. bxa5 {[%emt 0:00:02]} c5 {[%emt 0:00:23]} (25... Nb4 26. Nxe5 Qxe5 27. Qxb4 $11) 26. Nd2 {[%emt 0:01:34]} (26. a6 $1 $11 {remains equal.}) 26... Nb4 $17 {[%emt 0:00:24]} 27. Nc4 {[%emt 0:00:07]} Qxd3 {[%emt 0:01:16]} 28. Bf1 {[%emt 0:00:44]} Qd5 {[%emt 0:00:17]} (28... Qc2 {simplifies} 29. Qc3 Qxc3 30. bxc3 Nc6) 29. Qa1 {[%emt 0:00:18]} (29. e4 $15 Qd4 30. Qe2) 29... Nd3 {[%emt 0:00:50]} 30. b3 $2 {[%emt 0:00:18]} (30. Qa4) 30... Qf3 $19 {[%emt 0:00:46]} 31. Qa2 {[%emt 0:00:02]} Nc1 $1 {[%emt 0:00:23]} 32. Nxe5 {[%emt 0:00:02] [#]} Qe4 $1 {[%emt 0:00:14]} 33. Qa4 {[%emt 0:00:44]} (33. Qb2 $2 Rd1 34. f3 Qxe3+ 35. Qf2 Qxe5) 33... Qxe5 {[%emt 0:00:10]} 34. a6 {[%emt 0:00:00]} Qd5 {[%emt 0:01:01]} 35. a7 {[%emt 0:00:24]} Ra8 {[%emt 0:00:03]} (35... Nxb3 $2 36. Bc4 Qb7 (36... Qd1+ 37. Kg2 $11) 37. Bxb3 $19) 36. Qb5 {[%emt 0:00:01]} Qd8 $2 {[%emt 0:00:14]} (36... Nxb3 37. Bc4 Qd1+ 38. Kg2 $11) (36... Qxb3 $19 {and Black stays clearly on top.} 37. Qxc5 Qb1) 37. Qb7 $17 {[%emt 0:00:10]} Nxb3 $1 {[%emt 0:00:04]} 38. Bc4 {[%emt 0:00:20] [#]} Nd2 $1 {[%emt 0:00:05]} 39. Bxf7+ $2 {[%emt 0:00:04][%mdl 8192]} (39. Qxf7+ Kh8 40. Be2 (40. Bd5 $2 Rxa7 41. Qxa7 Qxd5 $19) 40... c4 (40... Qa5 $2 41. Qd5 $19) 41. Bxc4 Nxc4 42. Qxc4 Rxa7 $19) (39. Bd5 $17 Rxa7 40. Bxf7+ Kf8 41. Qxa7) 39... Kh8 {[%emt 0:00:01]} 40. Kg2 {[%emt 0:00:11]} c4 {[%emt 0:00:04]} 41. Bg6 $2 {[%emt 0:00:11]} ({Don't blunder} 41. Bd5 $2 Rxa7 42. Qc6 c3 $19) (41. Be6) 41... c3 {[%emt 0:00:02]} 42. Bc2 {[%emt 0:00:04]} Qc8 {[%emt 0:00:02]} 43. Qf7 {[%emt 0:00:07]} (43. Qb6 $142) 43... Qc6+ {[%emt 0:00:02]} 44. e4 {[%emt 0:00:01]} Qb6 {[%emt 0:00:04]} 45. e5 {[%emt 0:00:02]} Qxa7 {[%emt 0:00:05]} 46. Qf5 {[%emt 0:00:00]} Kg8 {[%emt 0:00:05]} 47. Qh7+ {[%emt 0:00:04]} Kf7 {[%emt 0:00:01]} 48. Qg6+ {[%emt 0:00:00]} Kf8 {[%emt 0:00:00]} 49. e6 {[%emt 0:00:04]} Qb7+ {[%emt 0:00:02]} 50. Kh3 {[%emt 0:00:01]} Qe7 {[%emt 0:00:01]} 51. Qf5+ {[%emt 0:00:03]} Qf6 {[%emt 0:00:00]} 52. Qd5 {[%emt 0:00:01]} Re8 {[%emt 0:00:02]} 53. Bf5 {[%emt 0:00:04]} Kg8 {[%emt 0:00:02]} 54. e7+ {[%emt 0:00:02]} Kh8 {[%emt 0:00:01]} 55. Qd7 {[%emt 0:00:03]} Qxe7 {[%emt 0:00:00]} ({Worse is} 55... Rxe7 56. Qd8+) 0-1

[Event "CCT Chessable Masters D-I 2024"]
[Site "Online"]
[Date "2024.02.04"]
[Round "3"]
[White "Lazavik, Denis"]
[Black "Carlsen, Magnus"]
[Result "1/2-1/2"]
[ECO "D45"]
[WhiteElo "2566"]
[BlackElo "2830"]
[Annotator "TA"]
[PlyCount "151"]
[EventDate "2024.01.12"]
[EventType "k.o."]
[EventCountry "NET"]
[SourceTitle "playchess.com"]
[Source "ChessBase"]
[SourceQuality "1"]
[TimeControl "600+2"]

{[%evp 83,151,-13,-5,-19,0,-8,-8,-8,-10,-10,-12,-25,-28,-89,-8,-8,0,0,8,0,96,8,8,9,10,0,0,0,0,0,0,0,0,0,0,0,0,0,0,0,0,0,0,0,0,0,0,0,0,0,0,0,0,0,0,0,0,0,0,0,0,0,0,0,0,0,0,0,0,0]} 1. d4 {[%emt 0:00:03]} Nf6 {[%emt 0:00:04]} 2. c4 {[%emt 0:00:01]} e6 {[%emt 0:00:00]} 3. Nf3 {[%emt 0:00:01]} d5 {[%emt 0:00:01]} 4. Nc3 {[%emt 0:00:02]} c6 {[%emt 0:00:07]} 5. e3 {[%emt 0:00:08]} Nbd7 {[%emt 0:00:02]} 6. Qc2 {[%emt 0:00:02]} Bd6 {[%emt 0:00:07]} 7. b3 {[%emt 0:00:02]} O-O {[%emt 0:00:04]} 8. Be2 {[%emt 0:00:02]} e5 {[%emt 0:00:01]} 9. cxd5 {[%emt 0:00:03]} cxd5 {[%emt 0:00:01]} 10. Nb5 {[%emt 0:00:03]} Bb4+ {[%emt 0:00:01]} 11. Bd2 {[%emt 0:00:02]} Bxd2+ {[%emt 0:00:01]} 12. Nxd2 {[%emt 0:00:03]} a6 {[%emt 0:00:01]} 13. dxe5 {[%emt 0:00:02] D45: Semi-Slav: 5 e3.} Nxe5 {[%emt 0:00:00]} 14. Nd4 {[%emt 0:00:01]} Bg4 {[%emt 0:00:00]} 15. f3 {[%emt 0:00:25]} Bd7 {[%emt 0:00:05]} 16. O-O {[%emt 0:00:05]} Re8 $146 {[%emt 0:00:04]} ({Predecessor:} 16... Rc8 17. Qb2 Qe7 18. Rfd1 Rfe8 19. Nf1 Nc6 20. Nxc6 Bxc6 21. Rd2 g6 22. Rc1 Nh5 {½-½ Pecis,G (2379)-Weber,K (2288) VW-Cup1 final email 2009}) 17. Rfd1 {[%emt 0:00:05]} Qb6 {[%emt 0:00:08]} 18. Nf1 {[%emt 0:00:08]} h5 {[%emt 0:00:54]} 19. Qd2 {[%emt 0:00:13]} Rac8 {[%emt 0:00:13]} 20. Rac1 {[%emt 0:00:32]} Rxc1 {[%emt 0:00:02]} 21. Rxc1 {[%emt 0:00:03]} Nc6 {[%emt 0:00:02]} 22. Kf2 {[%emt 0:00:22]} a5 {[%emt 0:00:30]} 23. Nxc6 {[%emt 0:03:05]} bxc6 {[%emt 0:00:07]} 24. Qd4 {[%emt 0:00:00]} Qxd4 {[%emt 0:00:14]} 25. exd4 {[%emt 0:00:02]} Kf8 {[%emt 0:00:00]} 26. Ne3 {[%emt 0:00:58]} Rb8 {[%emt 0:00:08]} 27. Rc5 {[%emt 0:02:08]} Ra8 {[%emt 0:00:02]} 28. Ke1 {[%emt 0:01:03]} Ne8 {[%emt 0:00:02]} 29. Kd2 {[%emt 0:00:12]} Nc7 {[%emt 0:00:02]} 30. Rc1 {[%emt 0:00:04]} Ke7 {[%emt 0:00:04]} 31. Bd3 {[%emt 0:00:07]} g6 {[%emt 0:00:15]} 32. h4 {[%emt 0:00:06]} Ne6 {[%emt 0:00:06]} 33. Nc2 {[%emt 0:00:03]} Kd6 {[%emt 0:00:02]} 34. g3 {[%emt 0:00:02]} Rb8 {[%emt 0:00:10]} 35. Be2 {[%emt 0:00:19]} Ng7 {[%emt 0:00:19]} 36. Ne3 {[%emt 0:00:02]} a4 {[%emt 0:00:06]} 37. Bd1 {[%emt 0:00:10]} Ne6 {[%emt 0:00:04]} 38. Kc3 {[%emt 0:00:07]} axb3 {[%emt 0:01:26]} 39. Bxb3 {[%emt 0:00:01]} Re8 {[%emt 0:00:02]} 40. Re1 {[%emt 0:00:07]} Ra8 {[%emt 0:00:46]} 41. Nc2 {[%emt 0:00:03]} Ng7 {[%emt 0:00:07]} 42. Ne3 {[%emt 0:00:01]} Re8 {[%emt 0:00:21]} 43. Kd2 {[%emt 0:00:02]} Ra8 {[%emt 0:00:07]} 44. Kc3 {[%emt 0:00:01]} Ne8 {[%emt 0:00:05]} 45. a4 {[%emt 0:00:09]} Nc7 {[%emt 0:00:01]} 46. Nc2 {[%emt 0:00:03]} Ne6 {[%emt 0:00:07]} 47. Rd1 {[%emt 0:00:02]} g5 {[%emt 0:00:11]} 48. Rh1 {[%emt 0:00:05] [#]} (48. Ne3 $11) 48... gxh4 {[%emt 0:00:01]} (48... c5 $1 $17 {Strongly threatening ...c4.} 49. dxc5+ (49. hxg5 c4 $17) 49... Nxc5) 49. Rxh4 $11 {[%emt 0:00:00]} Rg8 {[%emt 0:00:02]} 50. Ne3 {[%emt 0:00:04]} Nc7 {[%emt 0:00:23]} 51. Nf1 {[%emt 0:00:04]} Bc8 {[%emt 0:00:01]} (51... Re8 $11) 52. Bc2 {[%emt 0:00:03]} ({White should play} 52. Rxh5 $16 c5 53. dxc5+ Kxc5 54. g4) 52... Re8 $11 {[%emt 0:00:19]} 53. Rxh5 {[%emt 0:00:02]} Re1 {[%emt 0:00:03]} 54. Bd3 {[%emt 0:00:02]} Ra1 {[%emt 0:00:03]} 55. Rh6+ {[%emt 0:00:01]} Ne6 {[%emt 0:00:04]} 56. Ne3 {[%emt 0:00:02]} Ra3+ {[%emt 0:00:07]} 57. Kd2 {[%emt 0:00:01]} Rxa4 {[%emt 0:00:01]} 58. Nf5+ {[%emt 0:00:01]} Kc7 {[%emt 0:00:01]} 59. Rf6 {[%emt 0:00:03]} Nd8 {[%emt 0:00:31]} 60. Nh6 {[%emt 0:00:03]} Rxd4 {[%emt 0:00:12]} 61. Ke3 {[%emt 0:00:01]} Ra4 {[%emt 0:00:18]} 62. Nxf7 {[%emt 0:00:00]} Nxf7 {[%emt 0:00:02]} 63. Rxf7+ {[%emt 0:00:01]} Kd6 {[%emt 0:00:00]} 64. Rf6+ {[%emt 0:00:02]} Kc5 {[%emt 0:00:01]} 65. g4 {[%emt 0:00:03]} Ra3 {[%emt 0:00:01]} 66. Ke2 {[%emt 0:00:01]} Kd4 {[%emt 0:00:36]} 67. Rxc6 {[%emt 0:00:02]} Bxg4 {[%emt 0:00:11]} 68. fxg4 {[%emt 0:00:01]} Rxd3 {[%emt 0:00:01]} 69. g5 {[%emt 0:00:00]} Rg3 {[%emt 0:00:02]} 70. g6 {[%emt 0:00:01]} Ke5 {[%emt 0:00:01]} 71. Kf2 {[%emt 0:00:01]} Rg5 {[%emt 0:00:01]} 72. Kf3 {[%emt 0:00:01]} Kf5 {[%emt 0:00:00]} 73. Rd6 $1 {[%emt 0:00:01]} Ke5 {[%emt 0:00:01]} 74. Rc6 {[%emt 0:00:00]} Kf5 {[%emt 0:00:00]} 75. Rd6 {[%emt 0:00:01]} Ke5 {[%emt 0:00:01]} 76. Rc6 $1 {[%emt 0:00:00]} 1/2-1/2

[Event "CCT Chessable Masters D-I 2024"]
[Site "Online"]
[Date "2024.02.07"]
[Round "4"]
[White "Carlsen, Magnus"]
[Black "Firouzja, Alireza"]
[Result "1-0"]
[ECO "D00"]
[WhiteElo "2830"]
[BlackElo "2759"]
[Annotator "TA"]
[PlyCount "101"]
[EventDate "2024.01.12"]
[EventType "k.o."]
[EventCountry "NET"]
[SourceTitle "playchess.com"]
[Source "ChessBase"]
[SourceQuality "1"]
[TimeControl "600+2"]

{[%evp 32,101,-16,-22,-20,0,19,0,0,0,0,0,75,79,74,60,68,68,67,79,90,8,12,8,8,8,39,7,25,25,112,57,65,69,56,61,52,48,52,56,77,40,43,43,108,87,259,237,228,164,195,141,270,252,507,396,732,869,1264,1299,1556,1274,2822,2714,5600,1801,29966,7818,29976,29971,29988,29989]} 1. d4 {[%emt 0:00:03]} Nf6 {[%emt 0:00:05]} 2. Bf4 {[%emt 0:00:07]} d5 {[%emt 0:00:08]} 3. e3 {[%emt 0:00:01]} c5 {[%emt 0:00:13]} 4. c3 {[%emt 0:00:03]} Nc6 {[%emt 0:00:12]} 5. Nd2 {[%emt 0:00:02]} e6 {[%emt 0:01:03]} 6. Bd3 {[%emt 0:00:02]} Bd6 {[%emt 0:00:19]} 7. Bxd6 {[%emt 0:00:01] D00: 1 d4 d5: Unusual lines.} Qxd6 {[%emt 0:00:00]} 8. f4 {[%emt 0:00:00]} cxd4 {[%emt 0:00:20]} 9. cxd4 {[%emt 0:00:00]} O-O {[%emt 0:00:09]} 10. Ngf3 {[%emt 0:00:07]} b6 {[%emt 0:00:16]} 11. a3 {[%emt 0:00:04]} a5 {[%emt 0:00:22]} 12. Qe2 {[%emt 0:00:04]} Bb7 {[%emt 0:00:06]} 13. O-O {[%emt 0:00:25]} Ne7 {[%emt 0:00:03]} 14. Rac1 {[%emt 0:00:05]} Rac8 {[%emt 0:00:24]} 15. g4 $146 {[%emt 0:01:14]} ({Predecessor:} 15. Nb3 Ne4 16. Rxc8 Rxc8 17. Rc1 Rxc1+ 18. Nxc1 Qc7 19. Nb3 {0-1 Kimsanboyev,A (1636)-Gurbanov,A (2252) IPCA Wch 20th 2021 (7)}) 15... Ne4 {[%emt 0:00:57]} 16. Ng5 {[%emt 0:00:27]} Nxg5 {[%emt 0:00:52]} 17. fxg5 {[%emt 0:00:02]} Rxc1 {[%emt 0:00:17]} 18. Rxc1 {[%emt 0:00:01]} Nc6 {[%emt 0:00:01]} 19. Ba6 {[%emt 0:00:40]} Bxa6 {[%emt 0:00:47]} 20. Qxa6 {[%emt 0:00:01]} Ne7 {[%emt 0:00:03]} 21. Nf3 {[%emt 0:00:06]} Ng6 {[%emt 0:00:08] [#]} (21... e5 $11) 22. Qb7 $1 $16 {[%emt 0:00:23]} e5 {[%emt 0:01:58]} 23. Rc6 {[%emt 0:00:03]} Qd8 {[%emt 0:00:01]} 24. dxe5 {[%emt 0:00:25]} (24. Qxb6 Qe8 25. dxe5 Nxe5 26. Nxe5 Qxe5 $11) 24... d4 {[%emt 0:00:07]} 25. Rd6 {[%emt 0:00:04]} (25. Nxd4 $2 Qxg5 (25... Nxe5 $2 26. Rxb6 Nxg4 27. Kh1 $19) 26. Rc3 Qxg4+ 27. Qg2 Qh5 $19 (27... Nxe5 28. Qxg4 Nxg4 29. h3 $17) (27... Qxg2+ 28. Kxg2 Nxe5 29. Nf3 $17)) 25... Qe8 {[%emt 0:00:02]} 26. Qxb6 {[%emt 0:00:00]} (26. exd4 $16 Qb5 27. Qe4 (27. Rxb6 Qe2 $11) 27... Qxb2 28. Qe3) 26... Nxe5 $11 {[%emt 0:00:36]} 27. Nxe5 {[%emt 0:00:02]} (27. Nxd4 $2 {perishes.} Nc4 (27... Nxg4 28. Nc6 $11) 28. Qb3 Nxd6 $19) 27... Qxe5 {[%emt 0:00:00]} 28. Qxd4 {[%emt 0:00:04]} ({Much worse is} 28. Rxd4 Qxe3+ 29. Kg2 Qxg5 $17) 28... Qxg5 {[%emt 0:00:01]} 29. Kg2 {[%emt 0:00:12]} Qb5 {[%emt 0:00:26]} 30. Kf2 {[%emt 0:00:19]} f5 {[%emt 0:00:27] [#]} (30... Qb8 $11 {keeps the balance.}) 31. g5 {[%emt 0:00:03]} (31. Rd8 $1 $16) 31... f4 $1 $14 {[%emt 0:00:01]} 32. Qd5+ {[%emt 0:00:00]} Qxd5 {[%emt 0:00:03]} 33. Rxd5 {[%emt 0:00:03]} fxe3+ {[%emt 0:00:17]} 34. Kxe3 {[%emt 0:00:01]} Rb8 {[%emt 0:00:01]} 35. Rd2 {[%emt 0:00:46]} Rb3+ {[%emt 0:00:13]} 36. Ke2 {[%emt 0:00:02]} Kf7 {[%emt 0:00:03]} 37. Kd1 {[%emt 0:00:04]} Kg6 {[%emt 0:00:02]} (37... Rh3 $1 $14) 38. h4 {[%emt 0:00:07]} Kh5 $2 {[%emt 0:00:07]} (38... h5 $16) 39. Kc2 $18 {[%emt 0:00:01]} Rh3 {[%emt 0:00:06]} 40. Rd7 {[%emt 0:00:19]} Kg6 {[%emt 0:00:03]} 41. Rd4 {[%emt 0:00:04]} (41. Rd5 $18) 41... Kh5 {[%emt 0:00:03]} (41... h5 $16 42. gxh6 Kxh6) 42. Ra4 $18 {[%emt 0:00:03]} g6 $2 {[%emt 0:00:01]} (42... h6 43. gxh6 (43. Rxa5 Rh2+ 44. Kb3 Rxh4 $16) 43... Kxh6 44. Rxa5 Rxh4) 43. Rxa5 $18 {[%emt 0:00:02]} Kxh4 $2 {[%emt 0:00:02]} (43... Rh2+ 44. Kb1 Rxh4) 44. b4 $18 {[%emt 0:00:03]} Kg4 {[%emt 0:00:02]} 45. a4 {[%emt 0:00:09]} Kf4 {[%emt 0:00:02]} 46. Rc5 {[%emt 0:00:02]} h5 {[%emt 0:00:01]} 47. gxh6 {[%emt 0:00:16]} g5 {[%emt 0:00:02]} 48. b5 {[%emt 0:00:02]} Rxh6 {[%emt 0:00:01]} 49. a5 {[%emt 0:00:01]} g4 {[%emt 0:00:01]} 50. b6 {[%emt 0:00:01]} g3 {[%emt 0:00:02]} 51. b7 {[%emt 0:00:01]} 1-0

[Event "CCT Chessable Masters D-I 2024"]
[Site "Online"]
[Date "2024.02.07"]
[Round "4"]
[White "Firouzja, Alireza"]
[Black "Carlsen, Magnus"]
[Result "1/2-1/2"]
[ECO "B70"]
[WhiteElo "2759"]
[BlackElo "2830"]
[Annotator "TA"]
[PlyCount "81"]
[EventDate "2024.01.12"]
[EventType "k.o."]
[EventCountry "NET"]
[SourceTitle "playchess.com"]
[Source "ChessBase"]
[SourceQuality "1"]
[TimeControl "600+2"]

{[%evp 10,81,39,47,38,41,40,58,56,61,81,77,73,30,22,25,34,36,25,31,37,0,87,85,88,95,88,95,106,52,109,72,78,10,7,7,7,7,15,4,16,16,16,16,16,0,16,0,12,6,6,-10,-17,-16,-20,-20,-24,-20,0,0,0,0,0,0,0,-16,0,0,0,0,41,46,52,31]} 1. e4 {[%emt 0:00:02]} c5 {[%emt 0:00:06]} 2. Nf3 {[%emt 0:00:07]} d6 {[%emt 0:00:02]} 3. d4 {[%emt 0:00:01]} cxd4 {[%emt 0:00:01]} 4. Nxd4 {[%emt 0:00:00]} Nf6 {[%emt 0:00:01]} 5. Nc3 {[%emt 0:00:01]} g6 {[%emt 0:00:03]} 6. f3 {[%emt 0:00:08]} Nc6 {[%emt 0:00:06]} 7. Be3 {[%emt 0:00:03]} h5 {[%emt 0:00:02]} 8. Bc4 {[%emt 0:00:12]} Bd7 {[%emt 0:00:03]} 9. Qd2 {[%emt 0:00:09]} Nxd4 {[%emt 0:00:02]} 10. Bxd4 {[%emt 0:00:08]} Bh6 {[%emt 0:00:02]} 11. Be3 {[%emt 0:00:12]} Bxe3 {[%emt 0:00:01]} 12. Qxe3 {[%emt 0:00:00]} Rc8 {[%emt 0:00:12]} 13. Bb3 {[%emt 0:00:05]} Qa5 {[%emt 0:00:00]} 14. O-O-O {[%emt 0:00:14]} Qc5 {[%emt 0:00:01]} 15. Rhe1 {[%emt 0:00:14][%cal Bh1e1,Be1e3,Be3e5][%mdl 32]} b5 {[%emt 0:00:48]} (15... Qxe3+ $11 {remains equal.} 16. Rxe3 h4) 16. e5 $16 {[%emt 0:00:16]} Qxe3+ {[%emt 0:00:02]} 17. Rxe3 {[%emt 0:00:01]} dxe5 {[%emt 0:00:00]} 18. Rxe5 {[%emt 0:00:02]} a6 {[%emt 0:00:13]} 19. a4 {[%emt 0:00:16]} (19. Rd6 $16 Rc6 20. Rxc6 Bxc6 21. Rc5) 19... Rb8 {[%emt 0:00:07]} (19... bxa4 $1 $14 20. Bxa4 (20. Nxa4 Bb5 $14) 20... Rxc3 21. Rxd7 Nxd7 22. bxc3 e6) 20. axb5 {[%emt 0:00:14]} axb5 {[%emt 0:00:02] [#]} 21. Nd5 {[%emt 0:01:12] White has more active pieces.} (21. Rd4 $1 $16) 21... Nxd5 $11 {[%emt 0:00:01]} 22. Rexd5 {[%emt 0:00:06]} Rb7 {[%emt 0:00:04]} 23. Kd2 {[%emt 0:01:04]} e6 {[%emt 0:00:03]} 24. Rd4 {[%emt 0:00:11]} h4 {[%emt 0:00:00]} 25. Kc3 {[%emt 0:00:08]} Ke7 {[%emt 0:00:05]} 26. Kb4 {[%emt 0:00:17]} g5 {[%emt 0:00:03]} 27. Ra1 {[%emt 0:00:19]} Bc6 {[%emt 0:00:14]} 28. Rd3 {[%emt 0:00:10]} Rd7 {[%emt 0:00:29]} 29. Rxd7+ {[%emt 0:00:14]} Bxd7 {[%emt 0:00:02][%mdl 4096] Endgame. KRB-KRB} 30. c4 {[%emt 0:00:45]} bxc4 {[%emt 0:00:15]} 31. Bxc4 {[%emt 0:00:00]} h3 {[%emt 0:00:13]} 32. g3 {[%emt 0:00:04]} Bc6 {[%emt 0:00:02]} 33. Rf1 {[%emt 0:00:39]} Kd6 {[%emt 0:00:33]} 34. Kc3 {[%emt 0:00:45]} Rc8 {[%emt 0:00:03]} 35. f4 {[%emt 0:00:15]} Bg2 {[%emt 0:01:06]} (35... Bd5 $5 36. b3 $8 gxf4 37. Rxf4 Bxc4 38. Rxc4 Rxc4+ 39. Kxc4 f5 $11) 36. Rf2 {[%emt 0:00:10]} g4 {[%emt 0:00:15]} (36... Bd5 $5 37. b3 $8 g4 $15) 37. Rd2+ {[%emt 0:00:10]} Bd5 {[%emt 0:00:05]} 38. b3 {[%emt 0:00:03]} Ra8 {[%emt 0:00:00]} 39. f5 {[%emt 0:00:14]} Ra1 {[%emt 0:00:29]} 40. fxe6 {[%emt 0:00:01]} fxe6 {[%emt 0:00:02]} 41. Be2 $1 {[%emt 0:00:12] Weighted Error Value: White=0.12 (very precise) /Black=0.11 (very precise) .  Mistake:       	White=2     	Black=2      Inaccurate:     	White=3     	Black=1      OK:         	White=16    	Black=11     Best:        	White=1     	Black=1      Strong:       	White=1     	---} 1/2-1/2

[Event "CCT Chessable Masters D-I 2024"]
[Site "Online"]
[Date "2024.02.07"]
[Round "4"]
[White "Firouzja, Alireza"]
[Black "Carlsen, Magnus"]
[Result "1-0"]
[ECO "B12"]
[WhiteElo "2759"]
[BlackElo "2830"]
[Annotator "TA"]
[PlyCount "97"]
[EventDate "2024.01.12"]
[EventType "k.o."]
[EventCountry "NET"]
[SourceTitle "playchess.com"]
[Source "ChessBase"]
[SourceQuality "1"]
[TimeControl "600+2"]

{[%evp 25,97,11,19,14,38,29,37,16,33,15,12,12,13,19,18,25,43,68,75,14,14,19,24,20,41,35,49,42,99,103,113,25,25,29,29,20,21,21,24,5,20,28,29,14,14,8,8,8,50,41,62,42,85,72,113,25,162,126,126,131,139,165,126,125,113,96,242,249,337,293,471,482,889,854]} 1. e4 {[%emt 0:00:02]} c6 {[%emt 0:00:04]} 2. d4 {[%emt 0:00:02]} d5 {[%emt 0:00:01]} 3. e5 {[%emt 0:00:00]} Bf5 {[%emt 0:00:06]} 4. Nf3 {[%emt 0:00:03]} e6 {[%emt 0:00:01]} 5. Be2 {[%emt 0:00:01]} a5 {[%emt 0:00:01]} (5... Ne7 6. O-O c5 7. dxc5 Nec6 8. c3 Bxc5 9. Bd3 Bg4 10. Nbd2 Nd7 11. Bb5 O-O 12. Bxc6 bxc6 13. h3 Bh5 14. Re1 Qb6 15. Qe2 a5 16. Nf1 Nxe5 17. Qxe5 Bxf2+ 18. Kh2 Bxf3 19. gxf3 Bxe1 20. Qxe1 {0-1 Firouzja,A (2777)-Carlsen,M (2835) Bullet Chess Losers blitz 2023 (6.5)}) 6. a4 {[%emt 0:00:19] B12: Caro-Kann: Advance Variation.} Nd7 {[%emt 0:00:06]} 7. O-O {[%emt 0:00:04]} f6 {[%emt 0:00:02]} 8. Bf4 $5 {[%emt 0:00:27][%mdl 4] Leaves trodden paths.} Ne7 {[%emt 0:01:42]} 9. exf6 {[%emt 0:00:57]} Nxf6 {[%emt 0:00:01]} 10. Bd3 {[%emt 0:00:18]} Ng6 {[%emt 0:00:01]} 11. Bg3 {[%emt 0:00:11]} Bd6 {[%emt 0:00:06]} 12. Re1 {[%emt 0:00:06]} O-O {[%emt 0:00:08]} 13. Nbd2 {[%emt 0:00:09]} Bxg3 $146 {[%emt 0:01:16]} ({Predecessor:} 13... Bxd3 14. cxd3 Qd7 15. Qb3 Bb4 16. Re2 Nh5 17. Qc2 Nhf4 18. Re3 Rac8 19. Nb3 b6 20. Bxf4 Rxf4 {0-1 Vatsal,S (2269)-Tarhan,A (2388) Abu Dhabi op 29th 2023 (4)}) 14. hxg3 {[%emt 0:00:03]} Ng4 {[%emt 0:00:06]} 15. Nb3 {[%emt 0:00:18]} b6 {[%emt 0:00:08]} 16. Qe2 {[%emt 0:00:47]} Qf6 {[%emt 0:00:16]} 17. Bxf5 {[%emt 0:00:11]} (17. c4 {is more complex.} Bxd3 18. Qxd3 Rae8 19. Rad1) 17... exf5 {[%emt 0:00:00]} 18. Qe6+ {[%emt 0:00:01]} Qxe6 {[%emt 0:00:01]} 19. Rxe6 {[%emt 0:00:00]} Rf6 {[%emt 0:00:14]} 20. Rae1 {[%emt 0:00:03]} Rxe6 {[%emt 0:00:02]} 21. Rxe6 {[%emt 0:00:01]} Rc8 {[%emt 0:00:01]} 22. Nc1 {[%emt 0:00:29]} ({White should try} 22. Rd6 $16) 22... f4 $11 {[%emt 0:00:49]} 23. Nd3 {[%emt 0:00:15]} fxg3 {[%emt 0:00:02]} 24. fxg3 {[%emt 0:00:01]} Nf6 {[%emt 0:00:37]} 25. Nde5 {[%emt 0:00:30]} Nxe5 {[%emt 0:00:03]} 26. Nxe5 {[%emt 0:00:35]} c5 {[%emt 0:00:56]} (26... b5 $14) 27. Rxb6 $16 {[%emt 0:00:15]} cxd4 {[%emt 0:00:02] [#]} 28. Nc6 {[%emt 0:01:02]} (28. b4 $1 $16 {[%cal Rb4a5]} axb4 29. a5 (29. Rxb4 Kf8 $11)) 28... Kf7 $11 {[%emt 0:00:38]} 29. Rb7+ {[%emt 0:00:14]} Ke8 {[%emt 0:00:57]} 30. Nxd4 {[%emt 0:00:01]} (30. Nxa5 $2 Rxc2 31. Rb8+ Ke7 32. Rb7+ Kd6 33. Rb6+ Kc7 34. Rb7+ Kc8 $19) 30... Rc4 {[%emt 0:00:02]} 31. c3 {[%emt 0:00:01]} Rxa4 {[%emt 0:00:01]} 32. Rxg7 {[%emt 0:00:02]} Ra1+ {[%emt 0:00:08]} 33. Kf2 {[%emt 0:00:01]} Rb1 {[%emt 0:00:01]} 34. Rb7 {[%emt 0:00:50]} Ne4+ {[%emt 0:00:01]} 35. Ke3 {[%emt 0:00:08]} Nxc3 {[%emt 0:00:19]} 36. Kf4 {[%emt 0:00:09]} (36. Rxh7 Rxb2 37. g4 Rb4) 36... Na4 {[%emt 0:00:35]} 37. b3 {[%emt 0:00:13]} Re1 {[%emt 0:00:06]} 38. Kf5 {[%emt 0:00:19]} Nc3 {[%emt 0:00:36]} 39. Rxh7 {[%emt 0:00:56]} Rg1 {[%emt 0:00:02]} 40. Ke6 {[%emt 0:00:25]} (40. g4 $16) 40... Kf8 {[%emt 0:00:03]} (40... Re1+ $11 41. Kf5 Rf1+ 42. Nf3 Rf2) 41. Nf5 {[%emt 0:00:12]} Re1+ {[%emt 0:00:12]} 42. Kf6 {[%emt 0:00:01]} Ne4+ {[%emt 0:00:00]} 43. Kg6 {[%emt 0:00:00]} Ke8 {[%emt 0:00:00]} 44. Re7+ {[%emt 0:00:04]} Kd8 {[%emt 0:00:01]} 45. Re5 {[%emt 0:00:01]} Rd1 {[%emt 0:00:03]} (45... Re2 $16 {keeps fighting.}) 46. g4 $18 {[%emt 0:00:16]} Kd7 {[%emt 0:00:05]} 47. Ne3 {[%emt 0:00:13]} ({Resist} 47. g5 Rd2 48. Ne3 Nc3) 47... Rb1 $2 {[%emt 0:00:04]} (47... Re1 48. Nxd5 Kd6) 48. Nxd5 $18 {[%emt 0:00:05]} Nc5 {[%emt 0:00:10]} (48... Nd6 $142 49. Nf6+ Kc6) 49. Nc3 {[%emt 0:00:02]} 1-0